lending/lending_fUSD_20240710
["ID","MTS","AMOUNT","RATE_DAILY","PERIOD"]
[331673549,1720621840062,-451.19805924,0.00013516,2]
[331673550,1720621840074,-651.82325305,0.00013516,2]
[331673551,1720621840084,-500.0,0.0001353,2]
[331673552,1720621840094,-500.0,0.00013539,2]
[331673553,1720621840103,-500.0,0.00013548,2]
[331673554,1720621840113,-500.0,0.00013557,2]
[331673555,1720621840123,-500.0,0.00013566,2]
[331673557,1720621840133,-168.46471536,0.00013574,2]
[331673559,1720621840143,-332.28819383,0.00013574,2]
[331673561,1720621840152,-500.0,0.00013574,2]
[331673563,1720621840162,-500.0,0.00013583,2]
[331673565,1720621840171,-500.0,0.00013592,2]
[331673566,1720621840181,-500.0,0.00013601,2]
[331673568,1720621840191,-500.0,0.0001361,2]
[331673570,1720621840200,-500.0,0.00013618,2]
[331673572,1720621840210,-500.0,0.00013627,2]
[331673574,1720621840219,-500.0,0.00013636,2]
[331673576,1720621840229,-500.0,0.00013645,2]
[331673578,1720621840239,-38275.0,0.00013646,2]
[331673580,1720621840249,-1665.0,0.00013646,2]
[331673582,1720621840259,-5808.0,0.00013646,2]
[331673584,1720621840269,-1200.0,0.00013646,2]
[331673586,1720621840279,-500.0,0.00013654,2]
[331673588,1720621840288,-500.0,0.00013662,2]
[331673590,1720621840298,-500.0,0.00013671,2]
[331673592,1720621840307,-500.0,0.0001368,2]
[331673594,1720621840317,-500.0,0.00013689,2]
[331673596,1720621840334,-500.0,0.00013698,2]
[331673597,1720621840344,-2751.0,0.00013699,2]
[331673598,1720621840354,-408.52,0.00013699,2]
[331673599,1720621840365,-200.0,0.00013699,2]
[331673600,1720621840375,-500.0,0.00013706,2]
[331673601,1720621840385,-500.0,0.00013715,2]
[331673602,1720621840396,-500.0,0.00013724,2]
[331673603,1720621840407,-255.0,0.00013726,2]
[331673604,1720621840416,-500.0,0.00013733,2]
[331673605,1720621840426,-166.23,0.00013733,2]
[331673606,1720621840436,-1000.0,0.00013739,2]
[331673608,1720621840446,-500.0,0.00013742,2]
[331673610,1720621840455,-500.0,0.0001375,2]
[331673612,1720621840465,-155.0,0.00013759,2]
[331673614,1720621840475,-546.3365,0.00013762,2]
[331673616,1720621840484,-3002.71527264,0.00013799,2]
[331673618,1720621840494,-3002.71527255,0.00013799,2]
[331673620,1720621840504,-3002.71527255,0.00013799,2]
[331673622,1720621840513,-3002.71527255,0.00013799,2]
[331673624,1720621840523,-3002.71527255,0.00013799,2]
[331673626,1720621840532,-608.5417,0.000138,2]
[331673628,1720621840541,-3002.71527255,0.00013811,2]
[331673630,1720621840551,-3002.71527255,0.00013833,2]
[331673632,1720621840560,-500.0,0.00013835,2]
[331673634,1720621840575,-3002.71527255,0.00013856,2]
[331673636,1720621840584,-780.76624,0.0001386,2]
[331673638,1720621840594,-500.0,0.00013862,2]
[331673640,1720621840604,-500.0,0.00013862,2]
[331673642,1720621840614,-500.0,0.00013862,2]
[331673644,1720621840624,-500.0,0.00013875,2]
[331673646,1720621840634,-500.0,0.00013875,2]
[331673648,1720621840644,-3002.71527255,0.00013878,2]
[331673650,1720621840655,-515.76107682,0.00013881,2]
[331673653,1720621840665,-1175.36,0.00013881,2]
[331673655,1720621840675,-500.0,0.00013881,2]
[331673657,1720621840685,-500.0,0.00013881,2]
[331673659,1720621840695,-500.0,0.00013881,2]
[331673661,1720621840705,-500.0,0.00013881,2]
[331673663,1720621840714,-583.76,0.00013881,2]
[331673665,1720621840725,-500.0,0.00013881,2]
[331673666,1720621840735,-500.0,0.00013888,2]
[331673668,1720621840745,-500.0,0.00013889,2]
[331673670,1720621840755,-500.0,0.00013889,2]
[331673672,1720621840766,-150.0,0.00013889,2]
[331673675,1720621840776,-500.0,0.00013889,2]
[331673676,1720621840786,-500.0,0.00013889,2]
[331673678,1720621840796,-500.0,0.00013889,2]
[331673680,1720621840805,-347.28235677,0.00013889,2]
[331673682,1720621840815,-500.0,0.00013889,2]
[331673684,1720621840829,-547.59893476,0.00013889,2]
[331673686,1720621840838,-476.80702002,0.00013889,2]
[331673689,1720621840848,-500.0,0.00013889,2]
[331673691,1720621840857,-500.0,0.00013889,2]
[331673693,1720621840868,-500.0,0.00013889,2]
[331673695,1720621840877,-500.0,0.00013889,2]
[331673697,1720621840887,-500.0,0.00013889,2]
[331673699,1720621840897,-500.0,0.00013889,2]
[331673701,1720621840906,-500.0,0.00013889,2]
[331673703,1720621840916,-500.0,0.00013889,2]
[331673705,1720621840925,-500.0,0.00013889,2]
[331673707,1720621840935,-500.0,0.00013889,2]
[331673709,1720621840944,-500.0,0.00013889,2]
[331673711,1720621840954,-169.88246148,0.00013889,2]
[331673713,1720621840963,-455.07000031,0.00013889,2]
[331673715,1720621840973,-500.0,0.00013889,2]
[331673717,1720621840982,-186.20054994,0.00013889,2]
[331673719,1720621840991,-500.0,0.00013889,2]
[331673721,1720621841000,-500.0,0.00013889,2]
[331673723,1720621841010,-500.0,0.00013889,2]
[331673725,1720621841019,-500.0,0.00013889,2]
[331673727,1720621841029,-500.0,0.00013889,2]
[331673729,1720621841040,-500.0,0.00013889,2]
[331673731,1720621841050,-500.0,0.0001389,2]
[331673733,1720621841059,-174.0861955,0.000139,2]
[331673735,1720621841069,-7500.0,0.000139,2]
[331673737,1720621841083,-3002.71527255,0.000139,2]
[331673739,1720621841092,-784.01538726,0.000139,2]
[331673741,1720621841102,-249.63053361,0.00013917,2]
[331673743,1720621841111,-500.0,0.00013917,2]
[331673745,1720621841121,-500.0,0.00013917,2]
[331673747,1720621841131,-500.0,0.00013926,2]
[331673749,1720621841140,-515.10201473,0.00013926,2]
[331673751,1720621841150,-500.0,0.00013926,2]
[331673753,1720621841160,-500.0,0.00013926,2]
[331673755,1720621841170,-767.04,0.00013926,2]
[331673757,1720621841180,-725.6,0.00013926,2]
[331673759,1720621841190,-500.0,0.00013926,2]
[331673761,1720621841200,-500.0,0.00013926,2]
[331673763,1720621841210,-500.0,0.00013926,2]
[331673765,1720621841219,-572.0,0.00013926,2]
[331673767,1720621841229,-500.0,0.0001393,2]
[331673769,1720621841239,-500.0,0.0001393,2]
[331673771,1720621841250,-1175.36,0.00013936,2]
[331673773,1720621841260,-500.0,0.00013936,2]
[331673775,1720621841269,-500.0,0.00013936,2]
[331673777,1720621841279,-367.27443057,0.00013936,2]
[331673779,1720621841289,-500.0,0.00013936,2]
[331673781,1720621841298,-583.76,0.00013936,2]
[331673783,1720621841308,-500.0,0.00013936,2]
[331673785,1720621841317,-500.0,0.00013944,2]
[331673787,1720621841330,-319.46084233,0.00013944,2]
[331673789,1720621841341,-500.0,0.00013944,2]
[331673791,1720621841351,-266.95881353,0.00013944,2]
[331673793,1720621841361,-500.0,0.00013944,2]
[331673795,1720621841371,-500.0,0.00013944,2]
[331673797,1720621841381,-206.87951422,0.00013944,2]
[331673799,1720621841391,-647.98811348,0.00013944,2]
[331673801,1720621841400,-389.05689493,0.00013944,2]
[331673803,1720621841409,-500.0,0.00013944,2]
[331673805,1720621841420,-500.0,0.00013944,2]
[331673807,1720621841429,-500.0,0.00013944,2]
[331673809,1720621841439,-500.0,0.00013944,2]
[331673811,1720621841448,-500.0,0.00013944,2]
[331673813,1720621841458,-500.0,0.00013944,2]
[331673815,1720621841467,-500.0,0.00013944,2]
[331673817,1720621841478,-500.0,0.00013944,2]
[331673819,1720621841488,-313.57681497,0.00013944,2]
[331673821,1720621841497,-500.0,0.00013944,2]
[331673823,1720621841507,-636.41096284,0.00013944,2]
[331673825,1720621841516,-500.0,0.00013944,2]
[331673827,1720621841526,-500.0,0.00013944,2]
[331673829,1720621841535,-500.0,0.00013944,2]
[331673831,1720621841545,-500.0,0.00013944,2]
[331673833,1720621841554,-500.0,0.00013944,2]
[331673835,1720621841564,-500.0,0.00013944,2]
[331673837,1720621841577,-262.0,0.0001395,2]
[331673839,1720621841587,-500.0,0.00013972,2]
[331673841,1720621841597,-500.0,0.00013972,2]
[331673844,1720621841607,-500.0,0.0001398,2]
[331673846,1720621841617,-500.0,0.0001398,2]
[331673848,1720621841627,-500.0,0.0001398,2]
[331673850,1720621841636,-767.04,0.0001398,2]
[331673852,1720621841646,-725.6,0.0001398,2]
[331673854,1720621841655,-500.0,0.0001398,2]
[331673856,1720621841664,-500.0,0.0001398,2]
[331673858,1720621841675,-500.0,0.0001398,2]
[331673860,1720621841684,-500.0,0.00013985,2]
[331673862,1720621841694,-500.0,0.00013985,2]
[331673864,1720621841703,-251.97232857,0.0001399,2]
[331673866,1720621841713,-1175.36,0.0001399,2]
[331673868,1720621841725,-500.0,0.0001399,2]
[331673870,1720621841735,-500.0,0.0001399,2]
[331673872,1720621841746,-500.0,0.0001399,2]
[331673874,1720621841755,-583.76,0.0001399,2]
[331673876,1720621841766,-500.0,0.0001399,2]
[331673878,1720621841776,-82704.22356865,0.00013997,2]
[331673880,1720621841786,-17254.64540178,0.00013997,2]
[331673882,1720621841796,-153.26472076,0.00013999,2]
[331673884,1720621841806,-500.0,0.00013999,2]
[331673886,1720621841815,-500.0,0.00013999,2]
[331673888,1720621841827,-602.0,0.00013999,2]
[331673890,1720621841836,-610.40184028,0.00013999,2]
[331673892,1720621841846,-500.0,0.00013999,2]
[331673894,1720621841856,-1907.33,0.00013999,2]
[331673896,1720621841866,-384.09001855,0.00013999,2]
[331673898,1720621841876,-500.0,0.00013999,2]
[331673900,1720621841885,-500.0,0.00013999,2]
[331673902,1720621841895,-500.0,0.00013999,2]
[331673904,1720621841904,-500.0,0.00013999,2]
[331673906,1720621841915,-500.0,0.00013999,2]
[331673908,1720621841924,-500.0,0.00013999,2]
[331673910,1720621841933,-165.86780142,0.00013999,2]
[331673912,1720621841943,-500.0,0.00013999,2]
[331673914,1720621841953,-500.0,0.00013999,2]
[331673916,1720621841963,-500.0,0.00013999,2]
[331673917,1720621841972,-500.0,0.00013999,2]
[331673918,1720621841981,-500.0,0.00013999,2]
[331673919,1720621841992,-500.0,0.00013999,2]
[331673920,1720621842001,-360.59045915,0.00013999,2]
[331673921,1720621842011,-500.0,0.00013999,2]
[331673922,1720621842022,-500.0,0.00013999,2]
[331673923,1720621842032,-500.0,0.00013999,2]
[331673924,1720621842042,-500.0,0.00013999,2]
[331673925,1720621842052,-500.0,0.00013999,2]
[331673926,1720621842062,-500.0,0.00013999,2]
[331673927,1720621842075,-500.0,0.00013999,2]
[331673928,1720621842084,-500.0,0.00013999,2]
[331673929,1720621842094,-500.0,0.00013999,2]
[331673930,1720621842104,-500.0,0.00013999,2]
[331673931,1720621842113,-645.0,0.00014,2]
[331673932,1720621842123,-129658.26368306,0.00014,2]
[331673933,1720621842138,-110293.30015649,0.00014,2]
[331673934,1720621842148,-22821.4594702,0.00014,2]
[331673935,1720621842170,-762.92,0.00014,2]
[331673936,1720621842193,-380.59,0.00014,2]
[331673937,1720621842213,-1736.995,0.00014,2]
[331673938,1720621842225,-449.62170957,0.00014,2]
[331673939,1720621842241,-603.207387,0.00014,2]
[331673940,1720621842253,-3108.2,0.00014,2]
[331673941,1720621842265,-975.50742252,0.00014,2]
[331673962,1720621842698,-155.75964403,0.00012314,2]
[331673964,1720621842707,-356.42240482,0.00013472,2]
[331673965,1720621842718,-1004.41795115,0.00014,2]
[331673966,1720621842733,-1466.79589,0.00014,2]
[331673967,1720621842864,-661.3131406,0.00014,2]
[331673968,1720621842876,-135110.52504066,0.00014,2]
[331673969,1720621842888,-288.61833,0.00014,2]
[331673970,1720621842899,-15204.79817622,0.00014,2]
[331673979,1720621844699,-3385.01537896,0.00014,2]
[331673980,1720621844710,-699.72,0.00014,2]
[331673981,1720621844741,-566288.30237688,0.00014,2]
[331673994,1720621845636,-500.0,0.00013522,2]
[331673996,1720621845646,-4642.33062268,0.0001379,2]
[331674002,1720621845688,-696.54385412,0.0001379,2]
[331674004,1720621845699,-2445.32954896,0.0001379,2]
[331674009,1720621845738,-2305.89672926,0.0001379,2]
[331674011,1720621845747,-1952.34136717,0.00014,2]
[331674013,1720621845758,-500.0,0.00014,2]
[331674017,1720621845790,-4931.05119658,0.00014,2]
[331674019,1720621845802,-2026.77504163,0.00014,2]
[331674024,1720621845844,-682.25801296,0.00014,2]
[331674025,1720621845856,-475.81398569,0.00014,2]
[331674031,1720621845920,-295.21458624,0.00014,2]
[331674033,1720621845931,-274.68725396,0.00014,2]
[331674035,1720621845943,-272.2950575,0.00014,2]
[331674038,1720621845954,-515.14099998,0.00014,2]
[331674040,1720621845965,-2900.52315067,0.00014,2]
[331674042,1720621845976,-343293.1795202,0.00014,2]
[331674044,1720621845987,-302.0,0.00014,2]
[331674046,1720621845998,-1156.69050346,0.00014,2]
[331674049,1720621846009,-1464.85394051,0.00014,2]
[331674051,1720621846020,-4857.58378139,0.00014,2]
[331674055,1720621847589,-1901.17,0.00014,2]
[331674056,1720621847602,-495.9459182,0.00014,2]
[331674057,1720621886412,1203.75999998,8.292e-05,7]
[331674059,1720621989685,874.40539128,0.00010051,2]
[331674061,1720622013959,1000.0,0.00010051,2]
[331674063,1720622073573,200.03460972,0.00011199,2]
[331674064,1720622131874,232.86426845,0.00011199,2]
[331674066,1720622155890,650.96,0.00010953,2]
[331674072,1720622377222,533.77087806,0.00011199,2]
[331674074,1720622720746,618.41,0.00010705,2]
[331674075,1720622968499,2374.12229473,0.00011199,2]
[331674107,1720623032086,-342.64620803,0.00012183,2]
[331674109,1720623032096,-245.00122692,0.00012314,2]
[331674110,1720623032106,-250.0,0.00012561,2]
[331674112,1720623032116,-177.86,0.0001257,2]
[331674113,1720623032128,-171.06,0.00012662,2]
[331674114,1720623032139,-618.41,0.00012969,2]
[331674115,1720623032150,-200.0,0.00013,4]
[331674116,1720623032161,-183.86326505,0.00013025,2]
[331674125,1720623037966,-816.13673495,0.00013025,2]
[331674126,1720623037976,-173.07745237,0.000131,4]
[331674127,1720623038035,-326.92254763,0.000131,4]
[331674128,1720623038045,-150.0,0.00013178,2]
[331674129,1720623038056,-330.12528741,0.000132,4]
[331674130,1720623038069,-369.87471259,0.000132,4]
[331674131,1720623038084,-1000.0,0.000133,4]
[331674132,1720623038096,-500.0,0.00013302,2]
[331674133,1720623038106,-74.44761671,0.0001331,2]
[331674134,1720623038130,-425.55238329,0.0001331,2]
[331674135,1720623038141,-32.65761671,0.00013319,2]
[331674238,1720623039982,-500.0,0.00013293,2]
[331674239,1720623039992,-467.34238329,0.00013319,2]
[331674240,1720623040002,-500.0,0.00013328,2]
[331674242,1720623040012,-500.0,0.00013337,2]
[331674243,1720623040021,-500.0,0.00013346,2]
[331674244,1720623040031,-89.23940609,0.00013354,2]
[331674245,1720623040043,-410.76059391,0.00013354,2]
[331674246,1720623040054,-500.0,0.00013363,2]
[331674247,1720623040063,-499.99,0.00013363,2]
[331674248,1720623040073,-500.0,0.00013372,2]
[331674249,1720623040083,-500.0,0.00013381,2]
[331674250,1720623040092,-500.0,0.0001339,2]
[331674251,1720623040106,-500.0,0.00013398,2]
[331674252,1720623040116,-300.93,0.000134,2]
[331674253,1720623040126,-1300.0,0.000134,4]
[331674254,1720623040139,-500.0,0.00013407,2]
[331674255,1720623040149,-500.0,0.00013416,2]
[331674256,1720623040160,-500.0,0.00013425,2]
[331674257,1720623040171,-150.0,0.00013425,2]
[331674258,1720623040180,-500.0,0.00013434,2]
[331674259,1720623040190,-16.01940609,0.00013442,2]
[331674260,1720623040202,-460.56973873,0.00013442,2]
[331674261,1720623040235,-23.41085518,0.00013442,2]
[331674262,1720623040245,-119.61279781,0.00013451,2]
[331674263,1720623040268,-380.38720219,0.00013451,2]
[331674264,1720623040277,-500.0,0.0001346,2]
[331674265,1720623040287,-500.0,0.00013469,2]
[331674266,1720623040296,-500.0,0.00013478,2]
[331674267,1720623040306,-500.0,0.00013486,2]
[331674269,1720623040316,-500.0,0.00013495,2]
[331674271,1720623040325,-155.0,0.000135,2]
[331674273,1720623040335,-200.0,0.000135,4]
[331674275,1720623040346,-500.0,0.00013504,2]
[331674277,1720623040356,-500.0,0.00013513,2]
[331674279,1720623040365,-2188.8407,0.00013516,2]
[331674281,1720623040375,-200.0,0.000136,4]
[331674283,1720623040384,-370.91,0.00013699,2]
[331674285,1720623040394,-200.0,0.000137,5]
[331674287,1720623040404,-239.57449318,0.00013736,2]
[331674289,1720623040417,-1000.0,0.00013798,2]
[331674291,1720623040427,-9608.68887224,0.00013799,2]
[331674293,1720623040436,-9608.68887216,0.00013799,2]
[331674295,1720623040447,-200.0,0.000138,5]
[331674298,1720623040457,-9608.68887216,0.00013804,2]
[331674300,1720623040466,-9608.68887216,0.00013817,2]
[331674302,1720623040476,-9608.68887216,0.00013831,2]
[331674304,1720623040485,-19396.7411112,0.0001384,2]
[331674306,1720623040495,-9608.68887216,0.00013845,2]
[331674308,1720623040504,-1097.20156354,0.00013849,2]
[331674310,1720623040517,-745.83403878,0.00013849,2]
[331674312,1720623040528,-17553.70550888,0.00013849,2]
[331674314,1720623040537,-19396.7411112,0.00013857,2]
[331674316,1720623040547,-9296.0954028,0.00013859,2]
[331674318,1720623040559,-312.59346936,0.00013859,2]
[331674320,1720623040568,-720.15653064,0.0001386,2]
[331674324,1720623040590,-463.82336,0.0001386,2]
[331674326,1720623040603,-83.50571936,0.0001386,2]
[331674328,1720623040613,-220.28105313,0.00013866,2]
[331674331,1720623040625,-10068.107374,0.00013866,2]
[331674333,1720623040640,-9108.35268407,0.00013866,2]
[331674335,1720623040650,-500.0,0.00013868,2]
[331674337,1720623040659,-1827.86,0.00013868,2]
[331674339,1720623040669,-500.0,0.00013868,2]
[331674341,1720623040679,-500.0,0.00013868,2]
[331674344,1720623040689,-500.0,0.00013868,2]
[331674346,1720623040701,-500.0,0.00013868,2]
[331674348,1720623040711,-500.0,0.00013868,2]
[331674350,1720623040721,-500.0,0.00013868,2]
[331674352,1720623040731,-500.0,0.00013868,2]
[331674354,1720623040741,-500.0,0.00013868,2]
[331674356,1720623040751,-500.0,0.00013868,2]
[331674358,1720623040760,-9608.68887216,0.00013872,2]
[331674360,1720623040770,-1028.44,0.00013873,2]
[331674362,1720623040780,-500.0,0.00013873,2]
[331674364,1720623040791,-500.0,0.00013873,2]
[331674366,1720623040801,-19396.7411112,0.00013874,2]
[331674368,1720623040810,-20809.92709004,0.0001388,2]
[331674370,1720623040820,-3035.53863712,0.00013883,2]
[331674374,1720623040845,-11786.98145673,0.00013883,2]
[331674376,1720623040856,-465.66613748,0.00013883,2]
[331674378,1720623040868,-811.82053098,0.00013883,2]
[331674380,1720623040880,-475.2125,0.00013883,2]
[331674467,1720623042848,-457.46955249,0.00013883,2]
[331674469,1720623042860,-1777.28742832,0.00013883,2]
[331674471,1720623042871,-586.76486808,0.00013883,2]
[331674472,1720623042881,-6475.73513192,0.00013886,2]
[331674473,1720623042892,-560.56,0.00013886,2]
[331674474,1720623042918,-305.3305634,0.00013886,2]
[331674475,1720623042929,-500.0,0.00013886,2]
[331674476,1720623042941,-494.62071346,0.00013886,2]
[331674477,1720623042952,-1058.55765,0.00013886,2]
[331674478,1720623042964,-213.88481338,0.00013886,2]
[331674479,1720623042974,-667.75858654,0.00013889,2]
[331674480,1720623042983,-705.0,0.00013889,2]
[331674481,1720623042992,-220.57,0.0001389,2]
[331674482,1720623043001,-8245.7742193,0.00013891,2]
[331674508,1720623044866,-2688.58982995,0.00013891,2]
[331674509,1720623044877,-8462.37706195,0.00013891,2]
[331674510,1720623044887,-339.74000108,0.00013898,2]
[331674511,1720623044896,-339.74000108,0.00013898,2]
[331674512,1720623044905,-339.74000108,0.00013899,2]
[331674513,1720623044915,-155.33347103,0.00013899,2]
[331674514,1720623044924,-339.74000108,0.00013899,2]
[331674515,1720623044933,-829.38072415,0.000139,2]
[331674516,1720623044942,-19396.7411112,0.000139,2]
[331674517,1720623044952,-9608.68887216,0.000139,2]
[331674518,1720623044962,-800.0,0.000139,5]
[331674519,1720623044971,-302.59398604,0.000139,2]
[331674520,1720623044981,-218.14338016,0.000139,2]
[331674521,1720623044990,-1979.29320574,0.000139,2]
[331674522,1720623044999,-500.0,0.00013923,2]
[331674523,1720623045009,-1827.86,0.00013923,2]
[331674524,1720623045018,-500.0,0.00013923,2]
[331674525,1720623045027,-500.0,0.00013923,2]
[331674526,1720623045037,-500.0,0.00013923,2]
[331674527,1720623045047,-500.0,0.00013923,2]
[331674528,1720623045056,-500.0,0.00013923,2]
[331674529,1720623045065,-500.0,0.00013923,2]
[331674530,1720623045074,-500.0,0.00013923,2]
[331674531,1720623045084,-155.16658832,0.00013923,2]
[331674532,1720623045093,-500.0,0.00013923,2]
[331674533,1720623045103,-1304.0,0.00013926,2]
[331674534,1720623045112,-150.0,0.00013926,2]
[331674535,1720623045121,-559.196,0.00013926,2]
[331674536,1720623045131,-530.848,0.00013926,2]
[331674537,1720623045141,-26732.551,0.00013926,2]
[331674538,1720623045152,-500.0,0.00013928,2]
[331674539,1720623045162,-500.0,0.00013928,2]
[331674540,1720623045172,-500.0,0.00013928,2]
[331674541,1720623045181,-438.25281739,0.00013928,2]
[331674542,1720623045190,-627.88350335,0.00013928,2]
[331674543,1720623045199,-500.0,0.00013928,2]
[331674544,1720623045208,-500.0,0.00013928,2]
[331674545,1720623045218,-500.0,0.00013928,2]
[331674546,1720623045227,-500.0,0.00013928,2]
[331674547,1720623045236,-500.0,0.00013928,2]
[331674548,1720623045246,-500.0,0.00013928,2]
[331674549,1720623045256,-500.0,0.00013928,2]
[331674550,1720623045265,-500.0,0.00013928,2]
[331674551,1720623045274,-450.7963459,0.00013928,2]
[331674552,1720623045283,-500.0,0.00013928,2]
[331674553,1720623045292,-510.79,0.00013928,2]
[331674554,1720623045301,-500.0,0.00013928,2]
[331674555,1720623045310,-500.0,0.00013928,2]
[331674556,1720623045319,-373.60904653,0.00013928,2]
[331674557,1720623045328,-500.0,0.00013928,2]
[331674558,1720623045338,-500.0,0.00013928,2]
[331674559,1720623045349,-500.0,0.00013928,2]
[331674560,1720623045358,-574.86677197,0.00013928,2]
[331674561,1720623045367,-264.73613661,0.00013928,2]
[331674562,1720623045376,-500.0,0.00013928,2]
[331674563,1720623045386,-644.52,0.00013928,2]
[331674564,1720623045395,-500.0,0.00013928,2]
[331674565,1720623045405,-500.0,0.00013928,2]
[331674566,1720623045414,-1028.44,0.00013928,2]
[331674567,1720623045424,-665.13,0.00013928,2]
[331674568,1720623045434,-500.0,0.00013928,2]
[331674569,1720623045443,-500.0,0.00013928,2]
[331674570,1720623045454,-500.0,0.00013928,2]
[331674571,1720623045464,-500.0,0.00013928,2]
[331674572,1720623045473,-500.0,0.00013928,2]
[331674573,1720623045482,-500.0,0.00013928,2]
[331674574,1720623045491,-626.26969681,0.00013928,2]
[331674575,1720623045501,-473.96990818,0.00013928,2]
[331674576,1720623045510,-500.0,0.00013928,2]
[331674577,1720623045520,-500.0,0.00013928,2]
[331674578,1720623045530,-500.0,0.00013928,2]
[331674580,1720623045540,-500.0,0.00013929,2]
[331674581,1720623045549,-500.0,0.00013978,2]
[331674583,1720623045559,-1827.86,0.00013978,2]
[331674584,1720623045568,-500.0,0.00013978,2]
[331674585,1720623045577,-500.0,0.00013978,2]
[331674586,1720623045586,-500.0,0.00013978,2]
[331674587,1720623045596,-500.0,0.00013978,2]
[331674588,1720623045605,-627.47499764,0.00013978,2]
[331674589,1720623045615,-500.0,0.00013978,2]
[331674590,1720623045625,-469.47803754,0.00013978,2]
[331674591,1720623045634,-500.0,0.00013978,2]
[331674592,1720623045643,-500.0,0.00013983,2]
[331674593,1720623045653,-500.0,0.00013983,2]
[331674594,1720623045663,-499.999999,0.00013983,2]
[331674595,1720623045673,-500.0,0.00013983,2]
[331674596,1720623045683,-311.8871941,0.00013983,2]
[331674597,1720623045693,-500.0,0.00013983,2]
[331674598,1720623045702,-500.0,0.00013983,2]
[331674599,1720623045712,-500.0,0.00013983,2]
[331674600,1720623045721,-510.79,0.00013983,2]
[331674601,1720623045731,-500.0,0.00013983,2]
[331674602,1720623045740,-500.0,0.00013983,2]
[331674603,1720623045749,-500.0,0.00013983,2]
[331674604,1720623045759,-500.0,0.00013983,2]
[331674605,1720623045768,-500.0,0.00013983,2]
[331674607,1720623045778,-500.0,0.00013983,2]
[331674609,1720623045789,-644.52,0.00013983,2]
[331674611,1720623045799,-500.0,0.00013983,2]
[331674613,1720623045808,-1028.44,0.00013983,2]
[331674615,1720623045818,-665.13,0.00013983,2]
[331674617,1720623045827,-388.99493639,0.00013983,2]
[331674619,1720623045837,-595.48434119,0.00013983,2]
[331674621,1720623045848,-500.0,0.00013983,2]
[331674623,1720623045858,-500.0,0.00013983,2]
[331674625,1720623045867,-500.0,0.00013983,2]
[331674627,1720623045877,-500.0,0.00013983,2]
[331674629,1720623045887,-500.0,0.00013983,2]
[331674630,1720623045896,-500.0,0.00013983,2]
[331674632,1720623045906,-500.0,0.00013983,2]
[331674634,1720623045915,-500.0,0.00013984,2]
[331674635,1720623045925,-158.57970611,0.00013989,2]
[331674636,1720623045934,-22873.77243822,0.00013997,2]
[331674637,1720623045947,-682.52581,0.00013997,2]
[331674638,1720623045963,-1243.700005,0.00013997,2]
[331674639,1720623045974,-670.14303817,0.00013997,2]
[331674640,1720623045985,-58088.16231929,0.00013997,2]
[331674641,1720623045996,-5516.27310492,0.00013997,2]
[331674642,1720623046008,-2930.15933922,0.00013997,2]
[331674643,1720623046205,-339.74000108,0.00013899,2]
[331674644,1720623046215,-407.66697694,0.000139,2]
[331674645,1720623046227,-505.14,0.000139,2]
[331674646,1720623046238,-292.064,0.000139,2]
[331674647,1720623046250,-851.41252935,0.000139,2]
[331674648,1720623046262,-5433.33535319,0.000139,2]